fUSD/lending_fUSD_20241215
["ID","MTS","AMOUNT","RATE_DAILY","PERIOD"]
[345402098,1734241843701,-150.121514,0.00013898,2]
[345402099,1734241843711,-5000.0,0.00013899,2]
[345402100,1734241843720,-4926.31770433,0.00013899,2]
[345402101,1734241843729,-441.03629076,0.000139,2]
[345402102,1734241843739,-150.121514,0.00013948,2]
[345402103,1734241843748,-150.121514,0.00013948,3]
[345402104,1734241843757,-1124.8574126,0.00013961,2]
[345402105,1734241843766,-1124.8574126,0.00013963,2]
[345402106,1734241843776,-1946.646,0.00013964,2]
[345402107,1734241843785,-153.502,0.00013964,2]
[345402108,1734241843795,-1124.8574126,0.00013965,2]
[345402109,1734241843805,-1124.8574126,0.00013969,2]
[345402110,1734241843814,-500.0,0.00013973,2]
[345402111,1734241843824,-500.0,0.00013973,2]
[345402112,1734241843834,-1124.8574126,0.00013976,2]
[345402113,1734241843844,-1124.8574126,0.00013985,2]
[345402114,1734241843854,-500.0,0.00013996,2]
[345402115,1734241843864,-500.0,0.00013996,2]
[345402116,1734241843873,-500.0,0.00013996,2]
[345402117,1734241843883,-500.0,0.00013996,2]
[345402118,1734241843894,-500.0,0.00013996,2]
[345402119,1734241843903,-500.0,0.00013996,2]
[345402120,1734241843913,-500.0,0.00013996,2]
[345402121,1734241843922,-500.0,0.00013996,2]
[345402122,1734241843932,-500.0,0.00013996,2]
[345402123,1734241843941,-929.93,0.00013996,2]
[345402124,1734241843951,-500.0,0.00013997,2]
[345402125,1734241843960,-437.61773821,0.00013997,2]
[345402126,1734241843970,-500.0,0.00013997,2]
[345402127,1734241843979,-500.0,0.00013997,2]
[345402128,1734241843988,-500.0,0.00013997,2]
[345402129,1734241843998,-500.0,0.00013997,2]
[345402130,1734241844008,-500.0,0.00013997,2]
[345402131,1734241844017,-500.0,0.00013997,2]
[345402132,1734241844027,-271.12289759,0.00013997,2]
[345402133,1734241844036,-500.0,0.00013997,2]
[345402134,1734241844045,-500.0,0.00013997,2]
[345402135,1734241844055,-500.0,0.00013997,2]
[345402136,1734241844064,-500.0,0.00013997,2]
[345402137,1734241844073,-500.0,0.00013997,2]
[345402138,1734241844082,-943.45,0.00013997,2]
[345402139,1734241844091,-517.47900103,0.00013997,2]
[345402140,1734241844100,-500.0,0.00013997,2]
[345402141,1734241844109,-500.0,0.00013997,2]
[345402142,1734241844118,-200.0,0.00013998,2]
[345402143,1734241844128,-500.0,0.00013998,2]
[345402144,1734241844139,-500.0,0.00013998,2]
[345402145,1734241844149,-516.46078625,0.00013998,2]
[345402146,1734241844158,-500.0,0.00013998,2]
[345402147,1734241844168,-500.0,0.00013998,2]
[345402148,1734241844177,-500.0,0.00013998,2]
[345402149,1734241844187,-500.0,0.00013998,2]
[345402150,1734241844197,-500.0,0.00013998,2]
[345402151,1734241844206,-500.0,0.00013998,2]
[345402152,1734241844216,-501.22863331,0.00013998,2]
[345402153,1734241844227,-500.0,0.00013998,2]
[345402154,1734241844238,-500.0,0.00013998,2]
[345402155,1734241844248,-500.0,0.00013998,2]
[345402156,1734241844257,-500.0,0.00013998,2]
[345402157,1734241844267,-500.98695325,0.00013998,2]
[345402158,1734241844276,-516.8396511,0.00013998,2]
[345402159,1734241844285,-500.0,0.00013998,2]
[345402160,1734241844294,-500.0,0.00013998,2]
[345402161,1734241844304,-500.0,0.00013998,2]
[345402162,1734241844317,-500.0,0.00013998,2]
[345402163,1734241844327,-500.0,0.00013998,2]
[345402164,1734241844336,-500.0,0.00013998,2]
[345402165,1734241844346,-500.0,0.00013998,2]
[345402166,1734241844357,-500.0,0.00013998,2]
[345402167,1734241844368,-500.0,0.00013998,2]
[345402168,1734241844380,-500.0,0.00013998,2]
[345402169,1734241844392,-3000.0,0.00013998,2]
[345402170,1734241844401,-500.0,0.00013998,2]
[345402171,1734241844411,-500.0,0.00013998,2]
[345402172,1734241844420,-500.0,0.00013998,2]
[345402173,1734241844429,-500.0,0.00013998,2]
[345402174,1734241844438,-500.0,0.00013998,2]
[345402175,1734241844447,-470.0554777,0.00013998,2]
[345402176,1734241844460,-29.9445223,0.00013998,2]
[345402177,1734241844469,-500.0,0.00013998,2]
[345402178,1734241844479,-500.0,0.00013998,2]
[345402179,1734241844488,-475.26307588,0.00013998,2]
[345402180,1734241844497,-500.0,0.00013998,2]
[345402181,1734241844507,-519.77835285,0.00013998,2]
[345402182,1734241844516,-500.0,0.00013998,2]
[345402183,1734241844525,-995.37,0.00013998,2]
[345402184,1734241844535,-995.37,0.00013998,2]
[345402185,1734241844544,-943.45,0.00013998,2]
[345402186,1734241844554,-500.0,0.00013998,2]
[345402187,1734241844563,-500.0,0.00013998,2]
[345402188,1734241844573,-1098.99,0.00013998,2]
[345402189,1734241844583,-1098.99,0.00013998,2]
[345402190,1734241844594,-4213.06,0.00013998,2]
[345402191,1734241844606,-4213.06,0.00013998,2]
[345402192,1734241844617,-500.0,0.00013998,2]
[345402193,1734241844628,-2384.47,0.00013998,2]
[345402194,1734241844638,-2384.47,0.00013998,2]
[345402195,1734241844647,-500.0,0.00013998,2]
[345402196,1734241844657,-929.93,0.00013998,2]
[345402197,1734241844667,-500.0,0.00013998,2]
[345402198,1734241844677,-500.0,0.00013998,2]
[345402199,1734241844688,-500.0,0.00013998,2]
[345402200,1734241844697,-500.0,0.00013998,2]
[345402201,1734241844708,-985.14,0.00013998,2]
[345402202,1734241844717,-985.14,0.00013998,2]
[345402203,1734241844727,-500.0,0.00013998,2]
[345402204,1734241844736,-500.0,0.00013998,2]
[345402205,1734241844745,-286.29492845,0.00013998,2]
[345402206,1734241844755,-500.0,0.00013998,2]
[345402207,1734241844764,-500.0,0.00013998,2]
[345402208,1734241844774,-500.0,0.00013998,2]
[345402209,1734241844783,-500.0,0.00013998,2]
[345402210,1734241844793,-1794.61,0.00013998,2]
[345402211,1734241844803,-1794.61,0.00013998,2]
[345402212,1734241844812,-500.0,0.00013998,2]
[345402213,1734241844821,-500.0,0.00013998,2]
[345402214,1734241844831,-500.0,0.00013998,2]
[345402215,1734241844841,-500.0,0.00013998,2]
[345402216,1734241844851,-500.0,0.00013998,2]
[345402217,1734241844861,-500.0,0.00013998,2]
[345402218,1734241844871,-500.0,0.00013998,2]
[345402219,1734241844880,-504.15170428,0.00013998,2]
[345402220,1734241844892,-500.0,0.00013998,2]
[345402221,1734241844902,-530.73,0.00013998,2]
[345402222,1734241844912,-500.0,0.00013998,2]
[345402223,1734241844922,-500.0,0.00013998,2]
[345402224,1734241844931,-530.73,0.00013998,2]
[345402225,1734241844942,-500.0,0.00013998,2]
[345402226,1734241844952,-500.0,0.00013998,2]
[345402227,1734241844962,-500.0,0.00013998,2]
[345402228,1734241844971,-500.0,0.00013998,2]
[345402229,1734241844981,-500.0,0.00013998,2]
[345402230,1734241844991,-533.25,0.00013998,2]
[345402231,1734241845000,-533.25,0.00013998,2]
[345402232,1734241845010,-500.0,0.00013998,2]
[345402233,1734241845019,-500.0,0.00013998,2]
[345402234,1734241845029,-500.0,0.00013998,2]
[345402235,1734241845039,-500.0,0.00013998,2]
[345402236,1734241845049,-500.0,0.00013998,2]
[345402237,1734241845059,-500.0,0.00013998,2]
[345402238,1734241845069,-712.61,0.00013998,2]
[345402239,1734241845079,-712.61,0.00013998,2]
[345402240,1734241845090,-681.83,0.00013998,2]
[345402241,1734241845099,-681.83,0.00013998,2]
[345402242,1734241845109,-500.0,0.00013998,2]
[345402243,1734241845118,-500.0,0.00013998,2]
[345402244,1734241845127,-500.0,0.00013998,2]
[345402245,1734241845136,-500.0,0.00013998,2]
[345402246,1734241845148,-500.0,0.00013998,2]
[345402247,1734241845158,-500.0,0.00013998,2]
[345402248,1734241845167,-500.0,0.00013998,2]
[345402249,1734241845177,-500.0,0.00013998,2]
[345402250,1734241845187,-340.97688943,0.00013998,2]
[345402251,1734241845197,-500.0,0.00013998,2]
[345402252,1734241845206,-500.0,0.00013998,2]
[345402253,1734241845215,-777.5,0.00013998,2]
[345402254,1734241845225,-777.5,0.00013998,2]
[345402255,1734241845235,-500.0,0.00013998,2]
[345402256,1734241845245,-500.0,0.00013998,2]
[345402257,1734241845254,-500.0,0.00013998,2]
[345402258,1734241845263,-500.0,0.00013998,2]
[345402259,1734241845273,-167.89271372,0.00013998,2]
[345402260,1734241845283,-1119.4,0.00013998,2]
[345402261,1734241845293,-1119.4,0.00013998,2]
[345402262,1734241845304,-530.25,0.00013998,2]
[345402263,1734241845316,-530.25,0.00013998,2]
[345402264,1734241845326,-500.0,0.00013998,2]
[345402265,1734241845336,-500.0,0.00013998,2]
[345402266,1734241845346,-500.0,0.00013998,2]
[345402267,1734241845356,-500.0,0.00013998,2]
[345402268,1734241845365,-642.64,0.00013998,2]
[345402269,1734241845374,-642.64,0.00013998,2]
[345402270,1734241845384,-500.0,0.00013998,2]
[345402271,1734241845394,-500.0,0.00013998,2]
[345402272,1734241845403,-500.0,0.00013998,2]
[345402273,1734241845413,-500.0,0.00013998,2]
[345402274,1734241845423,-500.0,0.00013998,2]
[345402275,1734241845432,-500.0,0.00013998,2]
[345402276,1734241845442,-500.0,0.00013998,2]
[345402277,1734241845451,-500.0,0.00013998,2]
[345402278,1734241845461,-500.0,0.00013998,2]
[345402279,1734241845472,-500.0,0.00013998,2]
[345402280,1734241845483,-1133.29,0.00013998,2]
[345402281,1734241845492,-1133.29,0.00013998,2]
[345402282,1734241845503,-500.0,0.00013998,2]
[345402283,1734241845514,-290.35286914,0.00013998,2]
[345402284,1734241845524,-500.0,0.00013998,2]
[345402285,1734241845534,-500.0,0.00013998,2]
[345402286,1734241845544,-500.0,0.00013998,2]
[345402287,1734241845555,-500.0,0.00013998,2]
[345402288,1734241845565,-500.0,0.00013998,2]
[345402289,1734241845575,-500.0,0.00013998,2]
[345402290,1734241845586,-33423.89707428,0.00013999,2]
[345402292,1734241846172,-1989.344846,0.00012806,2]
[345402293,1734241846183,-3365.3263092,0.00013999,2]
[345402294,1734241846341,-3609.92367057,0.00013999,2]
[345402301,1734241882569,24467.3859782,0.00012,2]
[345402338,1734242848134,-251.79677885,0.00010037,2]
[345402339,1734242848157,-63.04346391,0.00010045,2]
[345402345,1734243032405,-103.43653609,0.00010045,2]
[345402346,1734243032417,-167.86451923,0.0001006,2]
[345402347,1734243032426,-167.86451923,0.00010082,2]
[345402348,1734243032436,-282.06,0.00010137,2]
[345402349,1734243032446,-192.00845264,0.00010182,2]
[345402350,1734243032455,-8177.36087738,0.00010182,2]
[345402351,1734243032465,-1503.28,0.00010254,2]
[345402352,1734243032475,-297.31806467,0.00010282,2]
[345402353,1734243032484,-170.83,0.00010282,2]
[345402354,1734243032494,-5003.54160181,0.00011,2]
[345402355,1734243032506,-5400.0,0.00011,2]
[345402356,1734243032518,-5880.0,0.00011,2]
[345402357,1734243032529,-1360.0,0.00011,2]
[345402358,1734243032540,-32356.45839819,0.00011,2]
[345402359,1734243032550,-288.62605427,0.00011791,2]
[345402360,1734243032560,-5697.80244372,0.00012,2]
[345402361,1734243032596,-19834.81157808,0.00012,2]
[345402362,1734243032605,-556.16,0.00012206,2]
[345402363,1734243032615,-1056.0,0.00012411,2]
[345402364,1734243032625,-250.0,0.00012494,2]
[345402365,1734243032635,-1503.28,0.00012518,2]
[345402366,1734243032645,-250.0,0.00012535,2]
[345402367,1734243032655,-250.0,0.00012619,2]
[345402368,1734243032667,-1000.0,0.00012633,2]
[345402369,1734243032676,-250.0,0.00012714,2]
[345402370,1734243032686,-315.6,0.00012714,2]
[345402371,1734243032697,-10755.19,0.00012771,2]
[345402372,1734243032709,-200.0,0.00012892,2]
[345402373,1734243032719,-450.0,0.00013,2]
[345402374,1734243032730,-1056.0,0.00013064,2]
[345402375,1734243032739,-446.91,0.00013205,2]
[345402376,1734243032749,-164.73,0.00013217,2]
[345402377,1734243032760,-359.51,0.000133,2]
[345402378,1734243032772,-150.0,0.00013314,2]
[345402379,1734243032781,-504.2,0.00013495,2]
[345402380,1734243032793,-769.16,0.00013495,2]
[345402381,1734243032803,-769.16,0.00013495,2]
[345402382,1734243032813,-769.16,0.00013495,2]
[345402384,1734243032822,-681.53,0.00013495,2]
[345402386,1734243032833,-150.121514,0.00013498,3]
[345402388,1734243032843,-150.121514,0.00013498,2]
[345402390,1734243032853,-166.93,0.00013519,2]
[345402392,1734243032864,-150.121514,0.00013598,3]
[345402394,1734243032873,-150.121514,0.00013598,2]
[345402396,1734243032883,-150.121514,0.00013698,2]
[345402398,1734243032892,-150.121514,0.00013698,3]
[345402400,1734243032901,-556.16,0.00013732,2]
[345402402,1734243032912,-1056.0,0.00013752,2]
[345402404,1734243032921,-153.0,0.00013769,2]
[345402406,1734243032930,-153.0,0.00013769,2]
[345402409,1734243032945,-153.0,0.00013769,2]
[345402412,1734243032954,-4433.68593387,0.0001378,2]
[345402415,1734243032964,-4433.68593387,0.00013793,2]
[345402418,1734243032973,-150.121514,0.00013798,3]
[345402421,1734243032983,-150.121514,0.00013798,2]
[345402424,1734243032992,-4433.68593387,0.00013807,2]
[345402427,1734243033001,-4433.68593387,0.0001382,2]
[345402430,1734243033011,-4433.68593387,0.00013833,2]
[345402433,1734243033020,-4433.68593387,0.00013847,2]
[345402436,1734243033029,-4433.68593387,0.0001386,2]
[345402439,1734243033038,-4433.68593387,0.00013873,2]
[345402442,1734243033048,-259.32574557,0.00013879,2]
[345402445,1734243033058,-412.38,0.00013879,2]
[345402448,1734243033067,-63163.9966545,0.0001388,4]
[345402451,1734243033080,-30821.86220076,0.0001388,4]
[345402454,1734243033092,-22334.65533766,0.0001388,4]
[345402459,1734243033109,-1409.25229469,0.0001388,4]
[345402836,1734243038250,-805.2081566,0.0001388,4]
[345402837,1734243038305,-268.28055403,0.0001388,4]
[345402838,1734243038485,-234977.88288925,0.0001388,4]
[345402839,1734243038496,-400444.70101756,0.0001388,2]
[345402840,1734243038509,-1520.0,0.0001388,2]
[345402841,1734243038645,-1501.26519847,0.0001388,2]
[345402959,1734243040286,-79713.0,0.0001388,2]
[345402962,1734243040298,-1296.6,0.0001388,2]
[345402964,1734243040310,-46190.2597,0.0001388,2]
[345402970,1734243040360,-7985.5,0.0001388,2]
[345402971,1734243040433,-735.52,0.0001388,2]
[345402972,1734243040445,-14836.0916415,0.0001388,2]
[345402973,1734243040499,-688.88999997,0.0001388,2]
[345402974,1734243040567,-347906.04462989,0.0001388,2]
[345402975,1734243040580,-31389.00260988,0.0001388,2]
[345402976,1734243040591,-4433.68593387,0.00013887,2]
[345402977,1734243040600,-150.121514,0.00013898,2]
[345402978,1734243040611,-150.121514,0.00013898,3]
[345402979,1734243040621,-378.0311064,0.00013898,2]
[345402980,1734243040635,-10010.3073,0.00013898,2]
[345402981,1734243040647,-3083.0454,0.00013898,2]
[345402982,1734243040658,-1012.98,0.00013899,2]
[345402983,1734243040669,-1557.317,0.000139,2]
[345402984,1734243040679,-2594.15770792,0.000139,2]
[345402985,1734243040688,-150.121514,0.00013948,2]
[345402986,1734243040701,-150.121514,0.00013948,3]
[345402987,1734243040715,-575.579162,0.00013973,2]
[345402988,1734243040726,-500.0,0.00013973,2]
[345402989,1734243040736,-500.0,0.00013996,2]
[345402990,1734243040746,-1942.06,0.00013996,2]
[345402991,1734243040755,-731.04187803,0.00013996,2]
[345402993,1734243043459,-500.0,0.00013879,2]
[345402994,1734243043469,-500.0,0.00013879,2]
[345402995,1734243043480,-500.0,0.00013879,2]
[345402996,1734243043491,-500.0,0.00013879,2]
[345402997,1734243043501,-500.0,0.00013879,2]
[345402998,1734243043511,-4433.68593387,0.000139,2]
[345402999,1734243043521,-500.0,0.00013995,2]
[345403000,1734243043532,-1048.47812197,0.00013996,2]
[345403001,1734243043542,-1631.1,0.00013996,2]
[345403002,1734243043551,-1811.72,0.00013996,2]
[345403003,1734243043562,-1811.72,0.00013996,2]
[345403004,1734243043573,-1811.72,0.00013996,2]
[345403005,1734243043583,-500.0,0.00013996,2]
[345403006,1734243043594,-500.0,0.00013996,2]
[345403007,1734243043604,-500.0,0.00013996,2]
[345403008,1734243043613,-500.0,0.00013996,2]
[345403009,1734243043623,-500.0,0.00013996,2]
[345403010,1734243043633,-500.0,0.00013996,2]
[345403011,1734243043648,-2337.03,0.00013996,2]
[345403012,1734243043658,-500.0,0.00013996,2]
[345403013,1734243043668,-500.0,0.00013996,2]
[345403014,1734243043678,-500.0,0.00013996,2]
[345403015,1734243043688,-557.91,0.00013996,2]
[345403016,1734243043698,-557.91,0.00013996,2]
[345403017,1734243043707,-557.91,0.00013996,2]
[345403018,1734243043717,-500.0,0.00013996,2]
[345403019,1734243043727,-500.0,0.00013996,2]
[345403020,1734243043737,-500.0,0.00013996,2]
[345403021,1734243043747,-634.65,0.00013996,2]
[345403022,1734243043757,-634.65,0.00013996,2]
[345403023,1734243043767,-634.65,0.00013996,2]
[345403024,1734243043777,-500.0,0.00013996,2]
[345403025,1734243043787,-500.0,0.00013996,2]
[345403026,1734243043797,-500.0,0.00013996,2]
[345403027,1734243043806,-500.0,0.00013996,2]
[345403028,1734243043816,-500.0,0.00013996,2]
[345403030,1734243043825,-500.0,0.00013996,2]
[345403031,1734243043835,-500.0,0.00013996,2]
[345403032,1734243043844,-500.0,0.00013996,2]
[345403033,1734243043854,-500.0,0.00013996,2]
[345403034,1734243043863,-500.0,0.00013996,2]
[345403035,1734243043872,-500.0,0.00013996,2]
[345403036,1734243043882,-500.0,0.00013996,2]
[345403037,1734243043892,-500.0,0.00013996,2]
[345403038,1734243043902,-500.0,0.00013996,2]
[345403039,1734243043911,-500.0,0.00013996,2]
[345403040,1734243043922,-500.0,0.00013996,2]
[345403041,1734243043932,-500.0,0.00013996,2]
[345403042,1734243043942,-500.0,0.00013996,2]
[345403043,1734243043956,-500.0,0.00013996,2]
[345403044,1734243043966,-500.0,0.00013996,2]
[345403045,1734243043975,-500.0,0.00013996,2]
[345403046,1734243043985,-500.0,0.00013996,2]
[345403047,1734243043996,-500.0,0.00013996,2]
[345403048,1734243044005,-500.0,0.00013996,2]
[345403049,1734243044015,-500.0,0.00013996,2]
[345403050,1734243044025,-500.0,0.00013996,2]
[345403051,1734243044035,-500.0,0.00013996,2]
[345403052,1734243044046,-500.0,0.00013996,2]
[345403053,1734243044056,-500.0,0.00013996,2]
[345403054,1734243044066,-500.0,0.00013996,2]
[345403056,1734243044076,-500.0,0.00013996,2]
[345403058,1734243044086,-500.0,0.00013996,2]
[345403059,1734243044095,-500.0,0.00013996,2]
[345403060,1734243044104,-500.0,0.00013996,2]
[345403061,1734243044114,-500.0,0.00013996,2]
[345403062,1734243044123,-500.0,0.00013996,2]
[345403063,1734243044132,-500.0,0.00013996,2]
[345403064,1734243044142,-500.0,0.00013996,2]
[345403065,1734243044151,-500.0,0.00013996,2]
[345403066,1734243044160,-500.0,0.00013996,2]
[345403067,1734243044171,-500.0,0.00013996,2]
[345403068,1734243044181,-500.0,0.00013996,2]
[345403069,1734243044190,-500.0,0.00013996,2]
[345403070,1734243044201,-500.0,0.00013996,2]
[345403071,1734243044211,-500.0,0.00013996,2]
[345403072,1734243044221,-500.0,0.00013996,2]
[345403073,1734243044231,-500.0,0.00013996,2]
[345403074,1734243044241,-500.0,0.00013996,2]
[345403075,1734243044251,-500.0,0.00013996,2]
[345403076,1734243044260,-500.0,0.00013996,2]
[345403077,1734243044270,-500.0,0.00013996,2]
[345403078,1734243044279,-500.0,0.00013996,2]
[345403079,1734243044289,-500.0,0.00013996,2]
[345403080,1734243044299,-578.52,0.00013996,2]
[345403081,1734243044309,-816.88,0.00013996,2]
[345403082,1734243044318,-816.88,0.00013996,2]
[345403083,1734243044328,-816.88,0.00013996,2]
[345403084,1734243044338,-500.0,0.00013996,2]
[345403085,1734243044347,-500.0,0.00013996,2]
[345403086,1734243044358,-500.0,0.00013996,2]
[345403087,1734243044368,-623.68,0.00013996,2]
[345403088,1734243044377,-500.0,0.00013996,2]
[345403089,1734243044387,-500.0,0.00013996,2]
[345403090,1734243044397,-500.0,0.00013996,2]
[345403091,1734243044408,-500.0,0.00013996,2]
[345403092,1734243044418,-500.0,0.00013996,2]
[345403093,1734243044427,-500.0,0.00013996,2]
[345403094,1734243044437,-2712.28,0.00013996,2]
[345403095,1734243044447,-2712.28,0.00013996,2]
[345403096,1734243044456,-2712.28,0.00013996,2]
[345403097,1734243044467,-500.0,0.00013996,2]
[345403098,1734243044477,-500.0,0.00013996,2]
[345403099,1734243044486,-500.0,0.00013996,2]
[345403100,1734243044496,-500.0,0.00013996,2]
[345403101,1734243044505,-500.0,0.00013996,2]
[345403102,1734243044515,-2405.74,0.00013996,2]
[345403103,1734243044525,-2405.74,0.00013996,2]
[345403104,1734243044535,-2405.74,0.00013996,2]
[345403105,1734243044545,-500.0,0.00013996,2]
[345403106,1734243044555,-500.0,0.00013996,2]
[345403107,1734243044565,-500.0,0.00013996,2]
[345403108,1734243044575,-500.0,0.00013996,2]
[345403109,1734243044585,-1541.83,0.00013996,2]
[345403110,1734243044595,-1541.83,0.00013996,2]
[345403111,1734243044606,-1541.83,0.00013996,2]
[345403112,1734243044617,-1021.72,0.00013996,2]
[345403113,1734243044626,-1021.72,0.00013996,2]
[345403114,1734243044636,-1021.72,0.00013996,2]
[345403115,1734243044646,-500.0,0.00013996,2]
[345403116,1734243044656,-500.0,0.00013997,2]
[345403117,1734243044667,-500.0,0.00013997,2]
[345403118,1734243044677,-500.0,0.00013997,2]
[345403119,1734243044686,-500.0,0.00013997,2]
[345403120,1734243044696,-500.0,0.00013997,2]
[345403121,1734243044706,-500.0,0.00013997,2]
[345403122,1734243044716,-500.0,0.00013997,2]
[345403123,1734243044725,-500.0,0.00013997,2]
[345403124,1734243044735,-500.0,0.00013997,2]
[345403125,1734243044745,-500.0,0.00013997,2]
[345403126,1734243044755,-500.0,0.00013997,2]
[345403127,1734243044764,-500.0,0.00013997,2]
[345403128,1734243044774,-500.0,0.00013997,2]
[345403129,1734243044784,-500.0,0.00013997,2]
[345403130,1734243044794,-243.73539562,0.00013997,2]
[345403131,1734243044803,-504.22279249,0.00013997,2]
[345403132,1734243044813,-500.0,0.00013997,2]
[345403133,1734243044823,-500.0,0.00013997,2]
[345403134,1734243044833,-500.0,0.00013997,2]
[345403135,1734243044842,-500.0,0.00013997,2]
[345403136,1734243044852,-646.39,0.00013997,2]
[345403137,1734243044861,-500.0,0.00013997,2]
[345403138,1734243044871,-500.0,0.00013997,2]
[345403139,1734243044882,-500.0,0.00013997,2]
[345403140,1734243044891,-500.0,0.00013997,2]
[345403141,1734243044902,-500.0,0.00013997,2]
[345403142,1734243044912,-500.0,0.00013997,2]
[345403143,1734243044924,-500.0,0.00013997,2]
[345403144,1734243044933,-500.0,0.00013997,2]
[345403145,1734243044943,-500.0,0.00013997,2]
[345403146,1734243044957,-500.0,0.00013997,2]
[345403147,1734243044966,-500.0,0.00013997,2]
[345403148,1734243044976,-500.0,0.00013997,2]
[345403149,1734243044985,-500.0,0.00013997,2]
[345403150,1734243044996,-500.0,0.00013997,2]
[345403151,1734243045005,-500.0,0.00013997,2]
[345403152,1734243045016,-463.50400718,0.00013997,2]
[345403153,1734243045026,-500.0,0.00013997,2]
[345403154,1734243045036,-500.0,0.00013997,2]
[345403155,1734243045046,-500.0,0.00013997,2]
[345403156,1734243045056,-500.0,0.00013997,2]
[345403157,1734243045066,-500.0,0.00013997,2]
[345403158,1734243045076,-500.0,0.00013997,2]
[345403159,1734243045086,-500.0,0.00013997,2]
[345403160,1734243045096,-500.0,0.00013997,2]
[345403161,1734243045106,-500.0,0.00013997,2]
[345403162,1734243045115,-500.0,0.00013997,2]
[345403163,1734243045126,-500.0,0.00013997,2]
[345403164,1734243045135,-500.0,0.00013997,2]
[345403165,1734243045145,-500.0,0.00013997,2]
[345403166,1734243045155,-500.0,0.00013997,2]
[345403167,1734243045165,-500.0,0.00013997,2]
[345403168,1734243045175,-223.84324314,0.00013997,2]
[345403169,1734243045185,-500.0,0.00013997,2]
[345403170,1734243045360,-500.0,0.00013997,2]
[345403171,1734243045371,-500.0,0.00013997,2]
[345403172,1734243045382,-500.0,0.00013997,2]
[345403173,1734243045391,-502.44217793,0.00013997,2]
[345403174,1734243045400,-500.0,0.00013997,2]
[345403175,1734243045410,-500.0,0.00013997,2]
[345403176,1734243045420,-225.1226348,0.00013997,2]
[345403177,1734243045430,-267.8534413,0.00013997,2]
[345403178,1734243045439,-500.0,0.00013997,2]
[345403179,1734243045449,-500.0,0.00013997,2]
[345403180,1734243045458,-506.58185816,0.00013997,2]
[345403181,1734243045468,-500.0,0.00013997,2]
[345403182,1734243045478,-510.79639911,0.00013997,2]
[345403183,1734243045487,-500.0,0.00013997,2]
[345403184,1734243045496,-500.0,0.00013997,2]
[345403185,1734243045506,-500.0,0.00013997,2]
[345403186,1734243045516,-500.0,0.00013997,2]
[345403187,1734243045526,-500.0,0.00013997,2]
[345403188,1734243045536,-500.0,0.00013997,2]
[345403189,1734243045545,-500.0,0.00013997,2]
[345403190,1734243045555,-500.0,0.00013997,2]
[345403191,1734243045564,-500.0,0.00013997,2]
[345403192,1734243045574,-500.0,0.00013997,2]
[345403193,1734243045584,-500.0,0.00013997,2]
[345403194,1734243045594,-507.64831257,0.00013997,2]
[345403195,1734243045603,-500.0,0.00013997,2]
[345403196,1734243045612,-500.0,0.00013997,2]
[345403197,1734243045622,-500.0,0.00013997,2]
[345403198,1734243045631,-500.0,0.00013997,2]